[Event "CZE-ch U14 Open 2023"]
[Site "Teplice"]
[Date "2023.03.16"]
[Round "7.9"]
[White "Tichy, Tomas"]
[Black "Vlcek, Vojtech"]
[Result "1/2-1/2"]
[ECO "B17"]
[WhiteElo "1810"]
[BlackElo "1671"]
[Annotator "NA RC COMBH"]
[PlyCount "101"]
[EventDate "2023.03.09"]
[EventType "swiss"]
[EventCountry "CZE"]
[SourceTitle "playchess.com"]
[Source "ChessBase"]
[SourceQuality "1"]
[TimeControl "40/5400+30:1800+30"]

1. e4 {[%emt 0:00:12]} c6 {[%emt 0:00:12]} 2. d4 {[%emt 0:00:05]} d5 {[%emt 0:00:06]} 3. Nc3 {[%emt 0:00:04]} dxe4 {[%emt 0:00:06]} 4. Nxe4 {[%emt 0:00:04]} Nd7 {[%emt 0:01:03]} 5. Ng5 {[%emt 0:00:47]} Ngf6 {[%emt 0:01:47]} 6. Bd3 {[%emt 0:01:10]} e6 {[%emt 0:04:04]} 7. N1f3 {[%emt 0:01:37]} h6 {[%emt 0:03:56]} 8. Ne4 {[%emt 0:01:04]} (8. Nxe6 $5 Qe7 {[%mdl 64] Pin, Zwischenzug} 9. O-O fxe6 10. Bg6+ Kd8 11. Bf4 $11) 8... Nxe4 {[%emt 0:02:09]} 9. Bxe4 {[%emt 0:00:15]} Nf6 {[%emt 0:00:04]} 10. Bd3 {[%emt 0:01:04]} Bd6 {[%emt 0:00:28]} 11. O-O {[%emt 0:01:45]} Qc7 {[%emt 0:02:57]} 12. c4 {[%emt 0:07:01]} b6 {[%emt 0:00:28]} 13. a3 {[%emt 0:04:57]} Bb7 {[%emt 0:00:19]} 14. b4 {[%emt 0:05:46]} O-O {[%emt 0:04:43]} (14... c5 $15 15. dxc5 bxc5) 15. h3 {[%emt 0:09:10]} (15. c5 $14 {keeps the upper hand.} Bf4 16. Be3) 15... c5 {[%emt 0:01:50]} 16. dxc5 {[%emt 0:03:02]} bxc5 {[%emt 0:00:06]} 17. Rb1 {[%emt 0:04:26]} Nd7 {[%emt 0:02:54]} (17... Rad8 $15 18. Qe2 Rfe8) 18. Qe2 {[%emt 0:04:20]} e5 {[%emt 0:03:37]} ({Black should try} 18... cxb4 $11 19. axb4 a5) 19. Be4 {[%emt 0:03:24]} (19. Nh4 $1 $14) 19... Bxe4 {[%emt 0:01:07]} 20. Qxe4 {[%emt 0:00:07]} Nb6 {[%emt 0:02:44]} 21. b5 {[%emt 0:05:06]} f5 {[%emt 0:04:21]} 22. Qc2 $1 {[%emt 0:00:55]} Rae8 {[%emt 0:02:14]} (22... e4 $142 23. Nd2 Qe7) 23. Re1 {[%emt 0:07:06]} e4 {[%emt 0:08:16]} 24. Nd2 {[%emt 0:00:29]} Be5 {[%emt 0:00:46]} (24... Nd7 $17) 25. Nf1 {[%emt 0:07:15]} (25. a4 $1 $11 {remains equal.}) 25... Rd8 {[%emt 0:02:11]} 26. Bb2 {[%emt 0:01:32]} ({Better is} 26. a4 $15) 26... Bxb2 {[%emt 0:01:54]} 27. Rxb2 {[%emt 0:05:32]} Rd4 {[%emt 0:01:33]} 28. Nd2 {[%emt 0:06:40]} Qf7 {[%emt 0:01:26]} 29. Qc1 {[%emt 0:01:19]} Rfd8 {[%emt 0:11:09]} 30. Rc2 {[%emt 0:01:41]} Rd3 {[%emt 0:03:58]} 31. Kh1 {[%emt 0:01:53]} Qd7 {[%emt 0:01:11]} (31... R8d4 $19 {has better winning chances.} 32. Re3 Rxe3 33. fxe3 Rd3) 32. Nf1 {[%emt 0:03:25]} Qd4 {[%emt 0:07:01]} 33. Kg1 {[%emt 0:01:22]} g5 {[%emt 0:02:06]} 34. g3 {[%emt 0:02:06]} Qe5 {[%emt 0:01:18]} 35. Qa1 {[%emt 0:02:55]} Qxa1 {[%emt 0:04:15]} 36. Rxa1 {[%emt 0:00:04]} f4 {[%emt 0:00:09]} 37. Re1 {[%emt 0:01:00]} R8d4 {[%emt 0:00:13]} 38. Rce2 {[%emt 0:00:54]} Nxc4 {[%emt 0:03:35]} 39. Rxe4 {[%emt 0:00:54]} Rxe4 {[%emt 0:01:25]} 40. Rxe4 {[%emt 0:00:01]} Nxa3 {[%emt 0:00:10]} 41. Ra4 $17 {[%emt 0:09:00]} (41. gxf4 $142 gxf4 42. Rxf4) 41... c4 {[%emt 0:05:03]} 42. gxf4 {[%emt 0:09:40]} gxf4 {[%emt 0:01:13]} 43. Kg2 {[%emt 0:01:21]} c3 {[%emt 0:03:04]} 44. Rxa3 {[%emt 0:00:17]} c2 {[%emt 0:00:04]} 45. Rxd3 {[%emt 0:00:06]} c1=Q {[%emt 0:00:08]} 46. Rd8+ {[%emt 0:00:52]} Kf7 {[%emt 0:00:17]} 47. Rd7+ {[%emt 0:00:58]} Kf6 {[%emt 0:01:04]} 48. Rxa7 {[%emt 0:00:38]} Qc5 {[%emt 0:00:11]} 49. Ra6+ {[%emt 0:00:29]} Kg5 {[%emt 0:00:07]} 50. Nd2 {[%emt 0:04:36]} Qxb5 {[%emt 0:02:22]} 51. Nf3+ {[%emt 0:01:55]} 1/2-1/2

[Event "CZE-ch U14 Open 2023"]
[Site "Teplice"]
[Date "2023.03.16"]
[Round "7.10"]
[White "Veverka, Vladimir"]
[Black "Andrle, Filip"]
[Result "1/2-1/2"]
[ECO "E92"]
[WhiteElo "1735"]
[BlackElo "1721"]
[Annotator "NA RC COMBH"]
[PlyCount "71"]
[EventDate "2023.03.09"]
[EventType "swiss"]
[EventCountry "CZE"]
[SourceTitle "playchess.com"]
[Source "ChessBase"]
[SourceQuality "1"]
[TimeControl "40/5400+30:1800+30"]

1. d4 {[%emt 0:00:49]} Nf6 {[%emt 0:00:10]} 2. c4 {[%emt 0:00:20]} g6 {[%emt 0:00:50]} 3. Nc3 {[%emt 0:00:11]} Bg7 {[%emt 0:00:48]} 4. Nf3 {[%emt 0:03:07]} O-O {[%emt 0:01:01]} 5. e4 {[%emt 0:00:15]} d6 {[%emt 0:00:52]} 6. Be2 {[%emt 0:00:22]} e5 {[%emt 0:00:48]} 7. dxe5 {[%emt 0:00:47]} dxe5 {[%emt 0:00:18]} 8. Qxd8 {[%emt 0:00:07]} Rxd8 {[%emt 0:00:12]} 9. Bg5 {[%emt 0:00:09]} Re8 {[%emt 0:03:17]} 10. Nd5 {[%emt 0:00:22]} Nxd5 {[%emt 0:03:44]} 11. cxd5 {[%emt 0:00:17]} c6 {[%emt 0:03:26]} 12. Bc4 {[%emt 0:00:27]} Bd7 {[%emt 0:03:38]} 13. O-O {[%emt 0:06:58]} cxd5 {[%emt 0:03:17]} 14. Bxd5 {[%emt 0:01:27]} Bc6 {[%emt 0:00:58]} 15. Rfd1 {[%emt 0:01:58]} Bxd5 {[%emt 0:02:38]} 16. Rxd5 {[%emt 0:01:58]} Nc6 {[%emt 0:06:38]} 17. Rd7 {[%emt 0:06:34]} f6 {[%emt 0:02:55]} 18. Be3 {[%emt 0:02:02]} Re7 {[%emt 0:04:53]} 19. Rad1 {[%emt 0:02:04]} b6 {[%emt 0:07:59]} 20. Rxe7 {[%emt 0:02:38]} Nxe7 {[%emt 0:00:07]} 21. Rd7 {[%emt 0:00:30]} Kf7 {[%emt 0:00:30]} 22. Ne1 {[%emt 0:07:12]} Ke6 {[%emt 0:04:38]} 23. Rc7 {[%emt 0:02:46]} Kd6 {[%emt 0:02:45]} 24. Rc3 {[%emt 0:01:38]} Rc8 {[%emt 0:08:30]} 25. Rxc8 {[%emt 0:00:36]} Nxc8 {[%emt 0:00:46]} 26. Nc2 {[%emt 0:01:57]} Kc6 {[%emt 0:02:00]} 27. b3 {[%emt 0:01:19]} Bf8 {[%emt 0:02:11]} 28. f3 {[%emt 0:01:00]} Bc5 {[%emt 0:02:44]} 29. Kf2 {[%emt 0:01:34]} Nd6 {[%emt 0:01:38]} 30. Ke2 {[%emt 0:02:33]} Bxe3 {[%emt 0:03:29]} 31. Kxe3 {[%emt 0:02:18]} a5 {[%emt 0:05:35]} 32. Kd3 {[%emt 0:01:36]} Kc5 {[%emt 0:02:54]} 33. Ne3 {[%emt 0:06:58]} f5 {[%emt 0:01:16]} 34. Nd5 {[%emt 0:06:01]} fxe4+ {[%emt 0:05:27]} 35. fxe4 {[%emt 0:00:37]} Ne8 {[%emt 0:02:08]} 36. g3 {[%emt 0:04:24]} 1/2-1/2

[Event "CZE-ch U14 Open 2023"]
[Site "Teplice"]
[Date "2023.03.16"]
[Round "7.11"]
[White "Soucek, Andrej"]
[Black "Macosek, Alex"]
[Result "1-0"]
[ECO "A83"]
[WhiteElo "1679"]
[BlackElo "1466"]
[Annotator "NA RC COMBH"]
[PlyCount "135"]
[EventDate "2023.03.09"]
[EventType "swiss"]
[EventCountry "CZE"]
[SourceTitle "playchess.com"]
[Source "ChessBase"]
[SourceQuality "1"]
[TimeControl "40/5400+30:1800+30"]

1. d4 {[%emt 0:00:03]} f5 {[%emt 0:00:11]} 2. e4 {[%emt 0:03:02]} fxe4 {[%emt 0:00:25]} 3. Nc3 {[%emt 0:00:11]} Nf6 {[%emt 0:00:16]} 4. Bg5 {[%emt 0:00:12]} Nc6 {[%emt 0:04:50]} 5. d5 {[%emt 0:09:41]} Ne5 {[%emt 0:00:56]} 6. Qd4 {[%emt 0:05:16]} d6 {[%emt 0:02:10]} 7. Nxe4 {[%emt 0:06:40]} Nxe4 {[%emt 0:01:38]} 8. Qxe4 {[%emt 0:00:06]} g6 {[%emt 0:00:19]} 9. f4 {[%emt 0:08:26]} Bf5 {[%emt 0:01:24]} 10. Qd4 {[%emt 0:02:26]} Nf7 {[%emt 0:00:39]} 11. O-O-O {[%emt 0:19:28]} Rg8 {[%emt 0:04:11]} 12. Re1 {[%emt 0:08:09]} h6 {[%emt 0:06:15]} 13. Bf6 {[%emt 0:05:35]} a6 {[%emt 0:05:23]} 14. Nf3 {[%emt 0:06:00]} Rc8 {[%emt 0:03:06]} 15. Qe3 {[%emt 0:02:23]} c6 {[%emt 0:01:24]} 16. Nh4 {[%emt 0:03:16]} cxd5 {[%emt 0:02:03]} 17. Nxf5 {[%emt 0:01:38]} gxf5 {[%emt 0:00:12]} 18. g3 {[%emt 0:02:15]} Rg6 {[%emt 0:04:21]} 19. Bd4 {[%emt 0:02:02]} Qa5 {[%emt 0:01:49]} 20. Bd3 {[%emt 0:01:22]} Ne5 {[%emt 0:16:34]} 21. fxe5 {[%emt 0:05:39]} dxe5 {[%emt 0:00:26]} 22. Bxf5 {[%emt 0:03:44]} Rgc6 {[%emt 0:00:48]} 23. Bxc8 {[%emt 0:01:16]} exd4 {[%emt 0:01:11]} 24. Qxd4 {[%emt 0:01:17]} Rxc8 {[%emt 0:00:27]} 25. Rhf1 {[%emt 0:01:04]} Kd7 {[%emt 0:04:06]} 26. Rd1 {[%emt 0:01:17]} e6 {[%emt 0:00:58]} 27. Rf7+ {[%emt 0:00:28]} Be7 {[%emt 0:01:01]} 28. Qf6 {[%emt 0:00:49]} Qc5 {[%emt 0:00:19]} 29. c3 {[%emt 0:00:26]} Qe3+ {[%emt 0:01:16]} 30. Kb1 {[%emt 0:00:28]} Re8 {[%emt 0:00:15]} 31. Qd4 {[%emt 0:00:26]} Qg5 {[%emt 0:01:07]} 32. Qa4+ {[%emt 0:00:17]} b5 {[%emt 0:00:22]} 33. Qf4 {[%emt 0:00:18]} Qg6+ {[%emt 0:00:42]} 34. Ka1 {[%emt 0:00:11]} Qc2 {[%emt 0:00:49]} 35. Qd2 {[%emt 0:00:57]} Qxd2 {[%emt 0:00:56]} 36. Rxd2 {[%emt 0:00:11]} Kd6 {[%emt 0:00:06]} 37. Kb1 {[%emt 0:01:18]} Rc8 {[%emt 0:01:08]} 38. Kc2 {[%emt 0:00:37]} b4 {[%emt 0:00:15]} 39. Kb3 {[%emt 0:00:18]} bxc3 {[%emt 0:00:24]} 40. bxc3 {[%emt 0:00:07]} Bg5 {[%emt 0:00:23]} 41. Re2 {[%emt 0:01:33]} a5 {[%emt 0:00:48]} 42. h4 {[%emt 0:02:47]} Bd8 {[%emt 0:01:49]} 43. Rh7 {[%emt 0:15:52]} Bf6 {[%emt 0:00:54]} 44. Re3 {[%emt 0:03:41]} Rb8+ {[%emt 0:02:45]} 45. Kc2 {[%emt 0:01:52]} Rc8 {[%emt 0:02:26]} 46. Rxh6 {[%emt 0:03:13]} Be5 {[%emt 0:00:15]} 47. Rh5 {[%emt 0:02:54]} Bd4 {[%emt 0:01:20]} 48. Rd3 {[%emt 0:00:57]} Be5 {[%emt 0:00:45]} 49. g4 {[%emt 0:01:15]} a4 {[%emt 0:01:37]} 50. Rg5 {[%emt 0:01:15]} Rb8 {[%emt 0:00:31]} 51. Kd1 {[%emt 0:00:47]} Bf4 {[%emt 0:01:23]} 52. Rg6 {[%emt 0:00:30]} Rb2 {[%emt 0:01:09]} 53. Rd4 {[%emt 0:00:13]} Be5 {[%emt 0:00:33]} 54. Rxa4 {[%emt 0:00:05]} Bxc3 {[%emt 0:00:23]} 55. Ra6+ {[%emt 0:00:14]} Kc5 {[%emt 0:00:13]} 56. Rgxe6 {[%emt 0:01:04]} Rd2+ {[%emt 0:00:31]} 57. Kc1 {[%emt 0:00:10]} Rh2 {[%emt 0:00:49]} 58. h5 {[%emt 0:01:03]} Kc4 {[%emt 0:00:45]} 59. Re3 {[%emt 0:00:29]} Rh1+ {[%emt 0:00:16]} 60. Kc2 {[%emt 0:00:13]} Rh2+ {[%emt 0:00:14]} 61. Kd1 {[%emt 0:00:15]} Rd2+ {[%emt 0:03:07]} 62. Kc1 {[%emt 0:00:51]} d4 {[%emt 0:00:26]} 63. Ra4+ {[%emt 0:00:53]} Kc5 {[%emt 0:00:49]} 64. Re5+ {[%emt 0:00:30]} Kd6 {[%emt 0:03:00]} 65. Rg5 {[%emt 0:00:23]} Rh2 {[%emt 0:00:24]} 66. Ra6+ {[%emt 0:00:22]} Ke7 {[%emt 0:00:37]} 67. Rg7+ {[%emt 0:00:13]} Kf8 {[%emt 0:00:18]} 68. Rb7 {[%emt 0:00:12]} 1-0

[Event "CZE-ch U14 Open 2023"]
[Site "Teplice"]
[Date "2023.03.16"]
[Round "7.12"]
[White "Srba, Daniel"]
[Black "Striz, Tadeas"]
[Result "1/2-1/2"]
[ECO "B40"]
[WhiteElo "1509"]
[BlackElo "1503"]
[Annotator "NA RC COMBH"]
[PlyCount "92"]
[EventDate "2023.03.09"]
[EventType "swiss"]
[EventCountry "CZE"]
[SourceTitle "playchess.com"]
[Source "ChessBase"]
[SourceQuality "1"]
[TimeControl "40/5400+30:1800+30"]

1. e4 {[%emt 0:00:04]} c5 {[%emt 0:00:07]} 2. Nf3 {[%emt 0:00:04]} e6 {[%emt 0:00:07]} 3. d4 {[%emt 0:00:08]} cxd4 {[%emt 0:00:06]} 4. Nxd4 {[%emt 0:00:06]} Nf6 {[%emt 0:00:15]} 5. Nc3 {[%emt 0:00:08]} Nc6 {[%emt 0:00:06]} 6. Bg5 {[%emt 0:02:23]} Be7 {[%emt 0:05:30]} 7. f4 {[%emt 0:12:03]} Qb6 {[%emt 0:09:20]} 8. Nb3 {[%emt 0:10:49]} h6 {[%emt 0:03:00]} 9. Bxf6 {[%emt 0:06:01]} Bxf6 {[%emt 0:00:22]} 10. e5 {[%emt 0:00:17]} Be7 {[%emt 0:00:02]} 11. Qd2 {[%emt 0:01:18]} a6 {[%emt 0:12:34]} 12. O-O-O {[%emt 0:01:41]} Nxe5 {[%emt 0:00:51]} 13. Ne4 {[%emt 0:10:54]} Ng6 {[%emt 0:09:56]} 14. g3 {[%emt 0:10:56]} d5 {[%emt 0:07:26]} 15. Nc3 {[%emt 0:02:06]} Bd7 {[%emt 0:02:06]} 16. Bh3 {[%emt 0:01:45]} Rc8 {[%emt 0:07:40]} 17. Rhe1 {[%emt 0:01:46]} O-O {[%emt 0:03:08]} 18. Nxd5 {[%emt 0:02:41]} Qc6 {[%emt 0:08:05]} 19. Nxe7+ {[%emt 0:02:53]} Nxe7 {[%emt 0:00:01]} 20. Bg2 {[%emt 0:02:06]} Qc7 {[%emt 0:00:01]} 21. Bxb7 {[%emt 0:03:51]} Qxb7 {[%emt 0:01:50]} 22. Qxd7 {[%emt 0:00:24]} Rc7 {[%emt 0:00:01]} 23. Qd2 {[%emt 0:01:29]} Rfc8 {[%emt 0:00:06]} 24. c3 {[%emt 0:02:43]} a5 {[%emt 0:05:56]} 25. Nxa5 {[%emt 0:17:44]} Qa6 {[%emt 0:00:22]} 26. c4 {[%emt 0:01:33]} Nd5 {[%emt 0:02:07]} 27. Kb1 {[%emt 0:01:57]} Nb6 {[%emt 0:01:32]} 28. Re4 {[%emt 0:02:20]} Rd7 {[%emt 0:02:39]} 29. Rd4 {[%emt 0:01:45]} Rxd4 {[%emt 0:00:01]} 30. Qxd4 {[%emt 0:00:05]} Qxa5 {[%emt 0:00:08]} 31. b3 {[%emt 0:01:00]} Ra8 {[%emt 0:08:30]} 32. Qb2 {[%emt 0:00:59]} Qf5+ {[%emt 0:01:06]} 33. Kc1 {[%emt 0:00:30]} Qc5 {[%emt 0:01:06]} 34. Kb1 {[%emt 0:00:20]} Rb8 {[%emt 0:01:35]} 35. Rc1 {[%emt 0:00:40]} Nd7 {[%emt 0:02:22]} 36. Qc3 {[%emt 0:00:27]} Nf6 {[%emt 0:00:08]} 37. Re1 {[%emt 0:00:20]} Qf2 {[%emt 0:04:40]} 38. Qe5 {[%emt 0:00:05]} Ra8 {[%emt 0:00:22]} 39. Qe2 {[%emt 0:00:06]} Qc5 {[%emt 0:00:38]} 40. Qe5 {[%emt 0:00:42]} Qa3 {[%emt 0:00:24]} 41. Qb2 {[%emt 0:30:10]} Qc5 {[%emt 0:30:20]} 42. Qe5 {[%emt 0:00:08]} Qa7 {[%emt 0:00:00]} 43. Qb2 {[%emt 0:00:00]} Nd7 {[%emt 0:00:00]} 44. Rc1 {[%emt 0:00:00]} Rb8 {[%emt 0:00:00]} 45. Rd1 {[%emt 0:00:00]} Qb7 {[%emt 0:00:00]} 46. Qd4 {[%emt 0:00:00]} Nf6 {[%emt 0:00:00]} 1/2-1/2

[Event "CZE-ch U14 Open 2023"]
[Site "Teplice"]
[Date "2023.03.17"]
[Round "8.1"]
[White "Stary, Vojtech"]
[Black "Juhanak, Daniel"]
[Result "1/2-1/2"]
[ECO "C01"]
[WhiteElo "1814"]
[BlackElo "1952"]
[Annotator "TA"]
[PlyCount "60"]
[EventDate "2023.03.09"]
[EventType "swiss"]
[EventCountry "CZE"]
[SourceTitle "playchess.com"]
[Source "ChessBase"]
[SourceQuality "1"]
[TimeControl "40/5400+30:1800+30"]

{[%evp 19,60,2,9,0,1,6,13,0,22,0,21,21,23,11,25,5,0,0,0,0,0,0,0,0,2,5,0,0,0,0,0,0,0,-14,0,0,0,-6,0,0,0,0,3]} 1. e4 {[%emt 0:00:02]} e6 {[%emt 0:00:01]} 2. d4 {[%emt 0:00:09]} d5 {[%emt 0:00:01]} 3. exd5 {[%emt 0:00:08]} exd5 {[%emt 0:00:03]} 4. Nf3 {[%emt 0:00:05]} Nf6 {[%emt 0:00:08]} 5. Bd3 {[%emt 0:00:09]} Bd6 {[%emt 0:00:16]} 6. O-O {[%emt 0:00:16]} O-O {[%emt 0:00:17]} 7. Bg5 {[%emt 0:00:21]} Bg4 {[%emt 0:00:34]} 8. c3 {[%emt 0:00:22]} c6 {[%emt 0:01:12]} 9. Nbd2 {[%emt 0:00:30]} Nbd7 {[%emt 0:00:31]} 10. Qc2 {[%emt 0:00:44]} Qc7 {[%emt 0:00:48]} 11. Bh4 {[%emt 0:01:53] C01: French: Exchange Variation.} Bh5 {[%emt 0:02:13]} 12. Bg3 {[%emt 0:01:11]} Bg6 {[%emt 0:04:54]} 13. Bxd6 {[%emt 0:00:59]} Qxd6 {[%emt 0:02:20]} 14. Rfe1 {[%emt 0:02:58]} Rfe8 {[%emt 0:02:06]} 15. Bxg6 {[%emt 0:02:25] [#] Threatens to win with Bd3.} hxg6 {[%emt 0:00:38]} 16. h3 {[%emt 0:05:35] [#]} Nh5 $146 {[%emt 0:05:34]} ({Predecessor:} 16... Rxe1+ 17. Rxe1 Re8 18. Rxe8+ Nxe8 19. Qd1 Qe7 20. Qe1 {½-½ Dgebuadze,A (2562)-Gharamian,T (2560) Charleroi TIPC 2008 (9)}) 17. Rxe8+ {[%emt 0:11:57]} (17. Ng5 {seems wilder.} Nf4 18. g3 Ne6 19. Ndf3) 17... Rxe8 {[%emt 0:00:29] The position is equal.} 18. Re1 {[%emt 0:01:25]} Rxe1+ {[%emt 0:01:43]} 19. Nxe1 {[%emt 0:00:07]} Nf4 {[%emt 0:06:31]} 20. Nd3 {[%emt 0:02:12]} Qf6 {[%emt 0:20:22]} 21. Nxf4 {[%emt 0:01:05]} Qxf4 $11 {[%emt 0:00:01][%mdl 4096] Endgame KQN-KQN} 22. g3 {[%emt 0:02:29]} Qf6 {[%emt 0:02:28]} 23. Kg2 {[%emt 0:02:55]} Nb6 {[%emt 0:01:50] Repels Qa4} 24. b3 {[%emt 0:01:44]} Nc8 {[%emt 0:01:41]} 25. Nf3 {[%emt 0:05:56]} Nd6 {[%emt 0:07:50]} 26. Ne5 {[%emt 0:08:03]} Ne4 {[%emt 0:02:55]} 27. f3 {[%emt 0:03:56]} Nd6 {[%emt 0:01:52]} 28. Qd2 {[%emt 0:12:01]} Qe6 {[%emt 0:06:51]} 29. h4 {[%emt 0:06:18]} Nf5 {[%emt 0:04:23]} 30. Kf2 {[%emt 0:12:26]} Ne7 {[%emt 0:05:17] An uneventful encounter.   Weighted Error Value: White=0.05 (flawless) /Black=0.05 (flawless)} 1/2-1/2

[Event "CZE-ch U14 Open 2023"]
[Site "Teplice"]
[Date "2023.03.17"]
[Round "8.2"]
[White "Martirosyan, David"]
[Black "Zelba, Lukas"]
[Result "0-1"]
[ECO "D31"]
[WhiteElo "1975"]
[BlackElo "1912"]
[Annotator "TA"]
[PlyCount "68"]
[EventDate "2023.03.09"]
[EventType "swiss"]
[EventCountry "CZE"]
[SourceTitle "playchess.com"]
[Source "ChessBase"]
[SourceQuality "1"]
[TimeControl "40/5400+30:1800+30"]

{[%evp 26,68,20,6,16,0,75,0,69,0,138,0,19,12,0,0,0,0,0,0,0,0,0,-290,0,0,0,0,30,-37,-29,-84,-85,-872,-834,-1785,-1633,-2716,-2610,-374,-2452,-29975,-29959,-29978,-29971]} 1. d4 {[%emt 0:00:09]} d5 {[%emt 0:00:05]} 2. c4 {[%emt 0:00:10]} e6 {[%emt 0:00:10]} 3. Nc3 {[%emt 0:00:35]} Bb4 {[%emt 0:00:30]} 4. Nf3 {[%emt 0:00:07]} dxc4 {[%emt 0:00:12]} 5. e3 {[%emt 0:00:13]} b5 {[%emt 0:00:45]} 6. a4 {[%emt 0:00:13]} c6 {[%emt 0:00:10]} 7. Bd2 {[%emt 0:00:13]} a5 {[%emt 0:00:05]} 8. axb5 {[%emt 0:00:20]} Bxc3 {[%emt 0:00:06]} 9. Bxc3 {[%emt 0:00:08]} cxb5 {[%emt 0:00:03]} 10. b3 {[%emt 0:00:07]} Bb7 {[%emt 0:01:36]} 11. bxc4 {[%emt 0:00:06]} b4 {[%emt 0:00:09]} 12. Bb2 {[%emt 0:00:08]} Nf6 {[%emt 0:02:22]} 13. Bd3 {[%emt 0:00:54]} Nbd7 {[%emt 0:04:39] 13...0-0 is the modern continuation.} 14. O-O {[%emt 0:00:54]} Qc7 {[%emt 0:02:56] D31: Queen's Gambit Declined: Semi-Slav without ...Nf6 (+ Marshall Gambit and Noteboom) and Exchange Variation lines without ...Nf6.} 15. Re1 {[%emt 0:02:19]} Ne4 {[%emt 0:07:51] [#]} (15... Be4 $11) 16. Nd2 $146 {[%emt 0:01:27]} (16. d5 $16 Nef6 17. e4) ({Predecessor:} 16. Qc2 f5 17. d5 exd5 18. Nd4 Ne5 19. Ne6 Qd7 20. cxd5 Rc8 21. Qe2 Qxd5 22. Nf4 {1-0 Czopor,M (2415)-Marn,J (2282) EU-chT U18 Thessaloniki 2022 (2.5)}) 16... Ndf6 {[%emt 0:04:54]} (16... Nxf2 $2 17. Kxf2 O-O 18. Kg1 $18 (18. Qh5 f5 $16)) (16... Nxd2 $11 17. Qxd2 O-O) 17. Nxe4 {[%emt 0:15:21]} (17. Nf1 $14) 17... Nxe4 {[%emt 0:00:41]} (17... Bxe4 $11 18. Bxe4 Nxe4) 18. c5 {[%emt 0:04:17]} (18. d5 $16 Nf6 19. e4) 18... O-O $1 $11 {[%emt 0:04:31]} 19. f3 {[%emt 0:06:27]} Nf6 {[%emt 0:02:09][%cal Be4f6,Bf6d5,Bd5f4][%mdl 32]} 20. Qc2 {[%emt 0:00:37]} Bc6 {[%emt 0:10:26]} 21. e4 {[%emt 0:05:26][%cal Od4d5,Be3e4,Be4e5][%mdl 32]} a4 {[%emt 0:00:44]} 22. e5 {[%emt 0:04:21]} Nd5 {[%emt 0:03:11] ...h6 is the strong threat.} 23. Bxh7+ {[%emt 0:02:33]} Kh8 {[%emt 0:00:37] And now ...b3 would win.} 24. Re4 $2 {[%emt 0:02:28][%mdl 8192]} f5 $2 {[%emt 0:31:03]} (24... Kxh7 $2 {leads to mate.} 25. Rh4+ Kg8 26. Qh7#) ({Black should try} 24... Qe7 $19 {Strongly threatening ...b3.} 25. g3 g5) 25. exf6 $1 {[%emt 0:08:14][%mdl 64] [#] Discovered Attack} Rxf6 {[%emt 0:01:33] ...Rh6 would be deadly.} 26. Rh4 {[%emt 0:04:11] Hoping for Bc1.} g5 {[%emt 0:04:57]} 27. Rh5 {[%emt 0:07:29]} (27. Rh3 $1 $11) 27... Nf4 $36 {[%emt 0:01:00][%mdl 2048] Black fights for an advantage. Dancing on a razor blade.} 28. d5 {[%emt 0:03:01]} (28. Bg6+ $11 Nxh5 29. d5) 28... Nxh5 $17 {[%emt 0:00:10]} 29. Qg6 {[%emt 0:00:48][%mdl 8192] This move loses the game for White.} (29. Bg6 $17 a3 30. dxc6) 29... Qxh7 $19 {[%emt 0:00:27]} 30. Bxf6+ {[%emt 0:00:22]} Nxf6 {[%emt 0:00:09][%mdl 64] [#] Remove Defender} 31. Qxf6+ {[%emt 0:00:30]} Qg7 {[%emt 0:00:05]} 32. Qxg7+ {[%emt 0:01:11]} Kxg7 {[%emt 0:00:05]} 33. dxc6 {[%emt 0:00:06]} b3 {[%emt 0:02:52][%cal Bb4b3,Bb3b2][%mdl 32]} 34. c7 {[%emt 0:08:42]} b2 {[%emt 0:00:13] An entertaining game by Zelba.   Weighted Error Value: White=1.61/Black=0.37} 0-1

[Event "CZE-ch U14 Open 2023"]
[Site "Teplice"]
[Date "2023.03.17"]
[Round "8.3"]
[White "Ocelak, David"]
[Black "Jasso, Matej"]
[Result "1/2-1/2"]
[ECO "B54"]
[WhiteElo "1608"]
[BlackElo "1934"]
[Annotator "TA"]
[PlyCount "60"]
[EventDate "2023.03.09"]
[EventType "swiss"]
[EventCountry "CZE"]
[SourceTitle "playchess.com"]
[Source "ChessBase"]
[SourceQuality "1"]
[TimeControl "40/5400+30:1800+30"]

{[%evp 20,60,65,46,58,55,61,11,7,6,6,5,24,8,8,5,10,1,1,5,6,0,0,-2,-3,-3,0,-3,-3,-3,0,0,0,0,0,0,0,0,0,0,0,0,0]} 1. e4 c5 2. Nf3 d6 3. d4 cxd4 4. Nxd4 Nf6 5. f3 a6 6. c4 g6 7. Nc3 Bg7 8. Be3 O-O 9. Be2 Nc6 10. O-O Qc7 11. Rc1 {White is more active.} Nxd4 {B38: Sicilian: Maroczy Bind with 5...Bg7 and 7...0-0.} 12. Bxd4 Bd7 13. Nd5 (13. Qd2 $14) 13... Nxd5 $11 14. cxd5 {[#]} Bxd4+ $146 ({Predecessor:} 14... Qd8 15. Bxg7 Kxg7 16. Qd4+ Kg8 17. Rc3 Rc8 18. Rfc1 Qa5 19. a3 Rxc3 20. Qxc3 Qb6+ {0-1 Chichikina,V-Makeeva,T Penza op U16 Girls 2006 (2)}) 15. Qxd4 Qa5 16. a3 Rfc8 {The position is equal.} 17. Qe3 Rxc1 18. Rxc1 Rc8 19. Rxc8+ Bxc8 {[%mdl 4096] Endgame KQB-KQB} 20. Kf1 {Prevents Qe1+.} Bd7 21. Qc3 Qxc3 22. bxc3 {KB-KB} g5 23. Ke1 Kg7 24. Kd2 f5 25. exf5 Kf6 26. Ke3 Ke5 27. g4 h6 28. c4 Ba4 29. Bd3 Bd1 30. Bf1 Bb3 {Weighted Error Value: White=0.08 (flawless) /Black=0.00 (flawless)} 1/2-1/2